bitfinex/quotes_SOLUSD_20240620
["timestamp","ask_amount","ask_price","bid_price","bid_amount"]
[1718899199737,22.0781,133.47,133.4,18.9102]
[1718899199923,22.0781,133.47,133.43,7.4942]
[1718899200444,22.0781,133.47,133.41,45.0]
[1718899200844,22.0781,133.47,133.39,0.7413473]
[1718899201648,22.0781,133.47,133.42,7.4948]
[1718899203645,22.0781,133.47,133.43,7.4944]
[1718899203828,22.0781,133.47,133.43,7.4942]
[1718899204028,22.0781,133.47,133.44,7.4939]
[1718899204250,22.0781,133.47,133.41,7.4954]
[1718899204427,22.0781,133.47,133.39,0.7413473]
[1718899205445,22.0781,133.47,133.42,7.4947]
[1718899205944,22.0781,133.47,133.43,7.4942]
[1718899206145,6.2602,133.53,133.41,105.0875]
[1718899206334,6.2602,133.53,133.45,18.7326]
[1718899206529,15.8697,133.55,133.46,84.3658]
[1718899206731,6.2602,133.57,133.52,7.4893]
[1718899207038,6.2602,133.57,133.47,6.36]
[1718899207241,6.2602,133.57,133.46,45.51]
[1718899207453,6.2602,133.57,133.47,7.4921]
[1718899207747,6.2602,133.57,133.43,274.8288]
[1718899207748,15.8697,133.56,133.43,274.8288]
[1718899207932,15.8697,133.56,133.45,7.4933]
[1718899208129,15.8697,133.56,133.44,45.0]
[1718899208329,15.8697,133.56,133.43,274.8288]
[1718899208546,6.2191,133.55,133.45,7.4929]
[1718899208747,6.2191,133.55,133.44,18.7349]
[1718899209052,15.8697,133.56,133.46,28.9661]
[1718899209232,6.2191,133.58,133.53,7.4884]
[1718899209549,6.2191,133.58,133.5,18.7254]
[1718899209730,15.8697,133.6,133.52,18.7232]
[1718899209931,15.8697,133.6,133.56,7.4868]
[1718899210141,15.8697,133.6,133.55,7.4875]
[1718899210340,15.8697,133.6,133.51,45.0]
[1718899210541,15.8697,133.6,133.47,7.15158224]
[1718899210757,6.0513,133.59,133.42,29.1185]
[1718899211052,6.0513,133.57,133.45,7.4928]
[1718899211254,45.17,133.56,133.44,7.4936]
[1718899211560,15.8697,133.52,133.39,0.7413473]
[1718899211739,6.0513,133.51,133.4,7.496]
[1718899211940,6.0513,133.51,133.42,7.4947]
[1718899212327,6.0513,133.51,133.43,7.4943]
[1718899212825,6.0513,133.51,133.42,7.4949]
[1718899213028,6.0513,133.51,133.39,19.4831473]
[1718899213029,6.0513,133.51,133.39,0.7413473]
[1718899213257,45.17,133.5,133.39,0.7413473]
[1718899213458,0.17,133.5,133.39,0.7413473]
[1718899213753,20.17,133.5,133.39,0.7413473]
[1718899214050,6.0513,133.51,133.42,7.495]
[1718899214251,6.0513,133.51,133.39,0.7413473]
[1718899214555,6.0513,133.51,133.4,1.73407272]
[1718899214733,6.0513,133.51,133.41,0.17]
[1718899214928,6.0513,133.51,133.48,7.4912]
[1718899215255,66.24,133.63,133.41,22.71]
[1718899215256,22.0039,133.61,133.46,18.731]
[1718899215435,22.0039,133.61,133.48,7.4916]
[1718899215852,6.1342,133.6,133.44,18.7336]
[1718899216048,33.12,133.63,133.45,45.0]
[1718899216049,6.2119,133.58,133.45,45.0]
[1718899216360,6.2119,133.58,133.45,7.493]
[1718899216528,6.2119,133.58,133.45,7.4934]
[1718899216728,6.2119,133.56,133.42,18.7365]
[1718899216934,6.2119,133.56,133.45,7.493]
[1718899217354,6.2119,133.56,133.43,7.494]
[1718899217574,6.2119,133.54,133.44,7.4939]
[1718899217779,0.17,133.53,133.44,7.4939]
[1718899218452,0.17,133.53,133.43,7.4943]
[1718899218646,0.17,133.53,133.4,20.47347272]
[1718899218848,6.1377,133.51,133.41,7.4952]
[1718899219049,6.1377,133.51,133.39,19.4821473]
[1718899219236,0.17,133.5,133.42,7.4949]
[1718899219442,0.17,133.5,133.43,7.4942]
[1718899219643,0.17,133.5,133.39,0.7413473]
[1718899219934,0.17,133.5,133.4,24.27407272]
[1718899220148,6.1377,133.51,133.48,7.4912]
[1718899220348,6.1377,133.51,133.46,18.731]
[1718899220548,6.1377,133.51,133.42,16.0348]
[1718899220853,6.1377,133.51,133.44,7.4939]
[1718899221059,6.1377,133.51,133.43,7.4943]
[1718899221255,6.1377,133.51,133.42,7.4949]
[1718899221559,15.5218,133.5,133.4,20.47337272]
[1718899221760,15.5218,133.5,133.45,7.4931]
[1718899222149,15.5218,133.5,133.39,49.5060773]
[1718899222458,15.5218,133.5,133.4,18.7395]
[1718899222660,15.5218,133.5,133.43,7.4944]
[1718899222961,15.5218,133.5,133.4,18.7395]
[1718899223146,15.5218,133.5,133.43,7.4942]
[1718899223349,15.5218,133.5,133.4,18.7395]
[1718899223547,15.5218,133.5,133.39,0.7413473]
[1718899224051,15.5218,133.5,133.41,7.4954]
[1718899225247,15.5218,133.5,133.39,8.2378473]
[1718899225248,51.1853,133.49,133.39,8.2378473]
[1718899225442,51.1853,133.49,133.4,7.4962]
[1718899225641,0.17,133.48,133.39,8.2380473]
[1718899226063,0.17,133.48,133.4,7.4961]
[1718899226446,0.17,133.48,133.39,0.7413473]
[1718899227164,0.17,133.48,133.4,7.4962]
[1718899227364,0.17,133.48,133.39,8.2379473]
[1718899227756,0.17,133.48,133.4,7.4961]
[1718899228281,6.1853,133.49,133.39,19.4827473]
[1718899228561,6.1853,133.49,133.4,45.0]
[1718899228772,6.1853,133.49,133.42,7.495]
[1718899229067,6.1853,133.49,133.4,45.0]
[1718899229275,6.1853,133.49,133.43,7.4942]
[1718899229650,6.1853,133.49,133.39,0.7413473]
[1718899229865,20.0,133.48,133.39,0.7413473]
[1718899230469,15.7233,133.46,133.39,0.7413473]
[1718899230771,6.1703,133.45,133.39,0.7413473]
[1718899230970,6.3403,133.45,133.39,0.7413473]
[1718899231445,15.343,133.44,133.39,0.7413473]
[1718899231650,6.0199,133.42,133.39,0.7413473]
[1718899232048,15.343,133.44,133.39,0.7413473]
[1718899232286,15.5241,133.48,133.43,7.4943]
[1718899232457,15.5241,133.48,133.39,0.7413473]
[1718899232657,15.5241,133.48,133.41,7.4956]
[1718899232864,15.5241,133.48,133.39,0.7413473]
[1718899233063,15.5241,133.48,133.44,7.4939]
[1718899233450,15.5241,133.48,133.45,7.4934]
[1718899233651,15.5241,133.48,133.44,7.4938]
[1718899234283,15.5241,133.48,133.39,0.7413473]
[1718899234457,15.5241,133.48,133.41,7.4956]
[1718899235071,15.5241,133.48,133.42,7.495]
[1718899235657,15.5241,133.48,133.39,45.7413473]
[1718899235860,6.3839,133.49,133.47,7.4923]
[1718899236165,6.0115,133.55,133.47,18.7305]
[1718899236360,6.0115,133.55,133.48,45.0]
[1718899236566,6.0115,133.55,133.48,7.4914]
[1718899236762,6.0115,133.55,133.49,45.0]
[1718899237075,33.12,133.62,133.49,45.0]
[1718899237076,22.0216,133.61,133.5,0.34]
[1718899237379,22.0216,133.61,133.54,7.488]
[1718899237555,22.0216,133.61,133.53,7.4889]
[1718899237955,22.0216,133.61,133.52,7.4892]
[1718899238173,22.0216,133.61,133.49,63.7278]
[1718899238370,22.0216,133.61,133.5,0.17]
[1718899238555,22.0216,133.61,133.44,302.5918]
[1718899238759,22.0216,133.61,133.47,18.7302]
[1718899238948,22.0216,133.61,133.54,7.488]
[1718899239154,22.0216,133.61,133.51,18.7247]
[1718899239481,22.0216,133.61,133.55,7.4874]
[1718899239661,22.0216,133.61,133.56,7.4872]
[1718899239863,22.0216,133.61,133.54,7.488]
[1718899240077,22.0216,133.61,133.51,18.7247]
[1718899240250,22.0216,133.61,133.53,18.722]
[1718899240576,22.0216,133.61,133.54,45.0]
[1718899240783,22.0216,133.61,133.54,7.4883]
[1718899240978,22.0216,133.61,133.52,0.51]
[1718899241474,22.0216,133.61,133.51,18.7249]
[1718899241777,22.0216,133.61,133.47,60.0]
[1718899241778,22.0216,133.61,133.5,7.4902]
[1718899242078,22.0216,133.61,133.45,18.7329]
[1718899242271,22.0216,133.61,133.49,7.4907]
[1718899242272,45.17,133.6,133.49,7.4907]
[1718899242474,0.17,133.6,133.5,7.4902]
[1718899242669,0.17,133.6,133.49,7.491]
[1718899242867,45.17,133.6,133.48,7.4916]
[1718899243060,20.17,133.6,133.46,18.7321]
[1718899243382,22.0216,133.61,133.47,45.17]
[1718899243680,0.17,133.6,133.5,7.4904]
[1718899243912,45.17,133.6,133.47,45.0]
[1718899244177,45.17,133.6,133.5,7.4903]
[1718899244384,22.0216,133.61,133.5,7.4903]
[1718899244798,22.0216,133.61,133.51,45.0]
[1718899245082,22.0216,133.61,133.55,7.4877]
[1718899245287,22.0216,133.61,133.51,0.17]
[1718899245468,22.0216,133.61,133.53,7.4889]
[1718899245885,22.0216,133.61,133.54,7.4882]
[1718899246270,22.0216,133.61,133.53,7.4888]
[1718899246866,22.0216,133.61,133.54,7.4882]
[1718899247175,22.0216,133.61,133.55,7.4877]
[1718899247561,22.0216,133.61,133.54,7.4882]
[1718899247965,22.0216,133.61,133.52,18.7226]
[1718899248160,6.1519,133.61,133.53,45.51]
[1718899248360,6.1519,133.61,133.58,7.4858]
[1718899248587,6.0567,133.64,133.59,7.4853]
[1718899248760,6.0567,133.64,133.58,7.4861]
[1718899248955,6.0567,133.64,133.59,7.4854]
[1718899249157,6.0567,133.64,133.58,7.4859]
[1718899249564,6.0567,133.64,133.57,7.4864]
[1718899249770,6.0567,133.64,133.59,7.4854]
[1718899250075,6.3171,133.7,133.6,0.17]
[1718899250385,6.3171,133.7,133.66,7.4816]
[1718899250569,6.3171,133.7,133.65,7.482]
[1718899250974,6.3171,133.7,133.66,7.4814]
[1718899251178,6.3171,133.7,133.65,7.4819]
[1718899251371,6.3171,133.7,133.64,7.4825]
[1718899251565,6.3171,133.7,133.66,7.4813]
[1718899252088,6.6636,133.76,133.63,6.4599]
[1718899252292,6.6636,133.76,133.68,7.4802]
[1718899252464,6.6636,133.76,133.69,1.31014848]
[1718899252665,7.4784,133.72,133.69,1.31014848]
[1718899252868,7.4794,133.7,133.65,7.482]
[1718899253160,6.6636,133.76,133.66,7.4815]
[1718899253385,6.6636,133.76,133.64,45.0]
[1718899253588,6.6636,133.76,133.67,7.4809]
[1718899253787,7.4786,133.72,133.67,7.4809]
[1718899254176,7.4789,133.71,133.66,7.4814]
[1718899255788,7.4801,133.69,133.64,52.4824]
[1718899255968,7.4797,133.7,133.65,7.4821]
[1718899256880,39.6336,133.76,133.6,18.7124]
[1718899257083,7.4807,133.68,133.63,7.4831]
[1718899257386,7.4801,133.69,133.65,7.4821]
[1718899257592,7.4796,133.7,133.65,7.4819]
[1718899257769,7.4796,133.7,133.66,7.4816]
[1718899257972,6.1537,133.69,133.65,7.482]
[1718899258182,13.6338,133.69,133.65,7.482]
[1718899258789,7.4806,133.68,133.6,56.1343]
[1718899258978,7.4811,133.67,133.62,7.4836]
[1718899259293,7.4811,133.67,133.63,7.4832]
[1718899259481,6.1537,133.69,133.61,18.71]
[1718899259691,13.6339,133.69,133.65,7.4819]
[1718899259982,13.6339,133.69,133.64,7.4825]
[1718899260386,7.4814,133.67,133.62,7.4834]
[1718899261105,7.4808,133.68,133.63,7.4833]
[1718899261273,7.4808,133.68,133.59,18.7137]
[1718899261274,6.1537,133.69,133.62,7.4838]
[1718899261477,0.17,133.68,133.54,23.02850446]
[1718899261690,7.4849,133.61,133.54,34.5904]
[1718899261870,6.1911,133.62,133.54,34.5904]
[1718899261871,7.485,133.6,133.54,34.5904]
[1718899262078,6.1911,133.62,133.55,7.4875]
[1718899262277,6.1911,133.62,133.54,15.8697]
[1718899262700,7.4847,133.61,133.56,7.487]
[1718899262906,7.4851,133.6,133.56,7.4871]
[1718899263294,7.4851,133.6,133.55,7.4875]
[1718899263495,7.4851,133.6,133.54,15.8697]
[1718899263496,6.1911,133.62,133.54,15.8697]
[1718899263707,0.17,133.61,133.54,7.488]
[1718899264020,7.4846,133.61,133.56,7.4867]
[1718899264310,13.6752,133.62,133.57,7.4865]
[1718899264519,7.4846,133.61,133.57,7.4865]
[1718899264683,6.1911,133.62,133.51,34.5947]
[1718899264879,0.17,133.61,133.53,7.4888]
[1718899265084,7.4863,133.58,133.53,7.4888]
[1718899265289,7.4863,133.58,133.54,7.4883]
[1718899265687,7.4863,133.58,133.55,20.0]
[1718899265887,15.8697,133.6,133.51,15.8697]
[1718899266190,7.4892,133.53,133.49,7.4911]
[1718899266385,6.311,133.58,133.49,7.4911]
[1718899266386,6.311,133.58,133.5,20.0]
[1718899266695,6.311,133.58,133.51,7.4897]
[1718899266900,6.311,133.58,133.5,27.4905]
[1718899267093,0.17,133.57,133.5,20.0]
[1718899267604,6.311,133.58,133.52,7.4889]
[1718899268005,6.311,133.58,133.5,20.0]
[1718899268307,6.311,133.58,133.51,7.4896]
[1718899268701,6.311,133.58,133.51,7.4898]
[1718899269205,6.311,133.58,133.48,38.7283]
[1718899269403,6.311,133.58,133.49,45.0]
[1718899269609,6.311,133.58,133.5,20.0]
[1718899269908,6.311,133.58,133.5,27.4903]
[1718899270206,6.311,133.58,133.5,27.4905]
[1718899270507,0.17,133.57,133.47,15.8697]
[1718899270689,22.2799,133.56,133.47,15.8697]
[1718899270891,6.52,133.54,133.4,264.1593]
[1718899271107,6.52,133.54,133.43,7.4942]
[1718899271420,65.17,133.53,133.44,7.4939]
[1718899271621,65.17,133.53,133.43,7.4941]
[1718899271790,65.17,133.53,133.42,7.4949]
[1718899271990,65.17,133.53,133.43,20.0]
[1718899272192,65.17,133.53,133.42,7.4951]
[1718899272406,65.17,133.53,133.43,27.4943]
[1718899272721,65.17,133.53,133.44,7.4938]
[1718899273102,0.17,133.53,133.43,20.0]
[1718899273308,0.17,133.53,133.45,7.493]
[1718899274396,0.17,133.53,133.43,20.0]
[1718899274397,6.52,133.54,133.47,7.4918]
[1718899274613,6.52,133.54,133.45,7.4929]
[1718899274794,6.52,133.54,133.46,20.0]
[1718899275393,6.52,133.54,133.46,7.4925]
[1718899275814,6.52,133.54,133.45,7.4932]
[1718899276112,6.52,133.54,133.46,20.0]
[1718899276314,0.17,133.53,133.46,20.0]
[1718899276818,6.52,133.54,133.47,7.4918]
[1718899277116,6.52,133.54,133.48,7.4916]
[1718899277293,6.52,133.54,133.47,18.7305]
[1718899277493,6.52,133.54,133.53,7.4889]
[1718899277797,33.08,133.7,133.55,7.4875]
[1718899277798,6.0554,133.58,133.55,7.4875]
[1718899277999,6.0554,133.58,133.55,7.4876]
[1718899278708,6.0554,133.58,133.52,18.7237]
[1718899278887,6.0554,133.58,133.5,59.9921]
[1718899278888,6.3337,133.62,133.58,7.4858]
[1718899279395,22.2034,133.66,133.59,20.0]
[1718899279610,22.2034,133.66,133.61,7.4842]
[1718899279831,22.2034,133.66,133.6,7.4848]
[1718899280110,22.2034,133.66,133.55,18.7185]
[1718899280298,22.2034,133.66,133.56,45.51]
[1718899280493,22.2034,133.66,133.6,7.485]
[1718899280703,6.3337,133.66,133.62,7.4834]
[1718899281514,22.1445,133.7,133.61,45.0]
[1718899281697,22.1445,133.7,133.62,0.51]
[1718899281895,6.2748,133.7,133.62,19.2197]
[1718899282114,6.2748,133.7,133.63,45.0]
[1718899282417,0.0831728,133.73,133.68,7.4803]
[1718899282746,0.0831728,133.73,133.64,0.51]
[1718899282747,0.0831728,133.73,133.65,22.54]
[1718899283033,0.0831728,133.73,133.72,7.4783]
[1718899283200,0.0831728,133.73,133.72,52.4783]
[1718899283395,0.0831728,133.73,133.72,45.0]
[1718899283917,0.0831728,133.73,133.66,0.34]
[1718899284110,0.0831728,133.73,133.64,38.439]
[1718899284111,0.0831728,133.73,133.67,0.34]
[1718899284314,0.0831728,133.73,133.65,65.34]
[1718899284525,0.0831728,133.73,133.65,20.17]
[1718899285795,0.0831728,133.73,133.68,7.4801]
[1718899287097,0.0831728,133.73,133.66,45.34]
[1718899287319,0.0831728,133.73,133.68,7.4802]
[1718899287829,0.0831728,133.73,133.69,7.4799]
[1718899288199,0.0831728,133.73,133.68,7.4803]
[1718899288523,0.0831728,133.73,133.69,7.4799]
[1718899288698,0.0831728,133.73,133.67,18.7026]
[1718899288896,0.0831728,133.73,133.68,7.4802]
[1718899289204,0.0831728,133.73,133.62,37.4177]
[1718899289205,0.0831728,133.73,133.67,18.7025]
[1718899289413,0.0831728,133.73,133.7,7.4793]
[1718899289606,0.0831728,133.73,133.68,18.6999]
[1718899289920,0.0831728,133.73,133.72,7.4783]
[1718899290303,0.0831728,133.73,133.72,52.9883]
[1718899292209,0.0831728,133.73,133.72,45.0]
[1718899292414,0.0831728,133.73,133.65,6.1223]
[1718899292721,0.0831728,133.73,133.69,7.4798]
[1718899293128,0.0831728,133.73,133.68,7.4802]
[1718899293434,0.0831728,133.73,133.69,7.4798]
[1718899294002,0.0831728,133.73,133.63,18.707]
[1718899294326,0.0831728,133.73,133.61,639.5]
[1718899294508,0.0831728,133.73,133.61,382.6]
[1718899294711,0.0831728,133.73,133.68,7.4802]
[1718899295026,0.0831728,133.73,133.67,7.4809]
[1718899295623,0.0831728,133.73,133.69,7.4798]
[1718899296213,0.0831728,133.73,133.71,7.4788]
[1718899296521,0.0831728,133.73,133.72,7.4783]
[1718899296930,0.0831728,133.73,133.68,45.0]
[1718899297105,0.0831728,133.73,133.7,7.4789]
[1718899297305,0.0831728,133.73,133.71,45.0]
[1718899297810,0.0831728,133.73,133.71,7.4786]
[1718899298135,0.0831728,133.73,133.72,45.0]
[1718899298625,0.0831728,133.73,133.71,7.4787]
[1718899298809,0.0831728,133.73,133.72,7.4783]
[1718899299004,0.0831728,133.73,133.72,52.4783]
[1718899299224,0.0831728,133.73,133.72,52.9883]
[1718899300425,0.0831728,133.73,133.72,72.9883]
[1718899301525,0.0831728,133.73,133.72,52.4783]
[1718899301740,0.0831728,133.73,133.72,52.9883]
[1718899302229,0.0831728,133.73,133.72,52.8183]
[1718899302432,0.0831728,133.73,133.72,68.518]
[1718899302631,0.0831728,133.73,133.72,68.858]
[1718899307717,0.0831728,133.73,133.72,91.398]
[1718899307917,0.0831728,133.73,133.72,111.398]
[1718899309738,0.0831728,133.73,133.72,88.858]
[1718899310220,0.0831728,133.73,133.72,88.688]
[1718899310626,0.0831728,133.73,133.72,23.348]
[1718899310842,0.0831728,133.73,133.66,73.28150446]
[1718899311141,0.0831728,133.73,133.69,7.4795]
[1718899311320,0.0831728,133.73,133.68,23.348]
[1718899311517,0.0831728,133.73,133.62,22.4411221]
[1718899311518,0.0831728,133.73,133.67,7.4808]
[1718899311823,0.0831728,133.73,133.62,16.4040221]
[1718899311824,0.0831728,133.73,133.66,7.4814]
[1718899312012,0.0831728,133.73,133.64,18.7057]
[1718899312613,0.0831728,133.73,133.64,7.4824]
[1718899312925,0.0831728,133.73,133.65,7.4822]
[1718899313118,0.0831728,133.73,133.64,7.4826]
[1718899313528,0.0831728,133.73,133.65,7.4821]
[1718899313731,0.0831728,133.73,133.66,7.4813]
[1718899314044,22.3154,133.72,133.63,6.0767]
[1718899314215,78.13,133.71,133.59,7.4852]
[1718899314731,33.13,133.71,133.58,18.7153]
[1718899315050,33.13,133.71,133.59,7.4853]
[1718899315232,33.13,133.71,133.56,52.5257]
[1718899315429,33.13,133.71,133.6,7.4846]
[1718899316443,33.13,133.71,133.56,31.71769536]
[1718899316444,33.13,133.71,133.61,7.4841]
[1718899316648,33.13,133.71,133.57,18.7154]
[1718899316649,33.13,133.71,133.57,41.2554]
[1718899316821,33.13,133.71,133.59,18.7135]
[1718899317141,33.13,133.71,133.6,0.34]
[1718899317343,33.13,133.71,133.59,0.34]
[1718899317520,33.13,133.71,133.61,7.484]
[1718899317936,33.13,133.71,133.6,7.4847]
[1718899318220,33.13,133.71,133.61,45.0]
[1718899318430,22.3154,133.72,133.61,45.0]
[1718899318731,22.3154,133.72,133.65,7.4822]
[1718899318957,22.3154,133.72,133.62,0.51]
[1718899319650,22.3154,133.72,133.63,7.4833]
[1718899320140,22.3154,133.72,133.62,7.9938]
[1718899320445,0.17,133.71,133.63,45.0]
[1718899320643,0.17,133.71,133.62,7.4835]
[1718899320824,22.3154,133.72,133.64,7.4823]
[1718899321142,22.3154,133.72,133.65,45.17]
[1718899321320,6.559,133.72,133.7,7.4793]
[1718899321829,0.0831728,133.73,133.71,7.4788]
[1718899322321,0.0831728,133.73,133.69,7.4798]
[1718899322525,0.0831728,133.73,133.7,45.0]
[1718899322927,0.0831728,133.73,133.71,7.4784]
[1718899323127,0.0831728,133.73,133.64,18.7059]
[1718899323355,0.0831728,133.73,133.65,45.51]
[1718899323535,0.0831728,133.73,133.68,7.4802]
[1718899323731,0.0831728,133.73,133.69,45.0]
[1718899323921,0.0831728,133.73,133.7,7.479]
[1718899324125,0.0831728,133.73,133.69,45.0]
[1718899324326,0.0831728,133.73,133.69,52.4795]
[1718899324527,0.0831728,133.73,133.7,7.649]
[1718899324728,0.0831728,133.73,133.71,45.0]
[1718899325763,0.0831728,133.73,133.69,7.4799]
[1718899325930,0.0831728,133.73,133.7,45.0]
[1718899326129,0.0831728,133.73,133.68,0.34]
[1718899326323,0.0831728,133.73,133.65,48.669859]
[1718899326324,0.0831728,133.73,133.65,29.965459]
[1718899326631,0.0831728,133.73,133.69,7.4796]
[1718899326846,0.0831728,133.73,133.7,7.4792]
[1718899327726,0.0831728,133.73,133.72,7.4783]
[1718899327933,0.0831728,133.73,133.72,52.4783]
[1718899328136,0.0831728,133.73,133.72,45.0]
[1718899328334,0.0831728,133.73,133.71,7.4784]
[1718899328635,0.0831728,133.73,133.72,45.0]
[1718899329347,0.0831728,133.73,133.7,0.34]
[1718899329551,0.0831728,133.73,133.7,45.34]
[1718899329746,0.0831728,133.73,133.7,45.0]
[1718899329954,0.0831728,133.73,133.66,7.4812]
[1718899330156,0.0831728,133.73,133.65,7.482]
[1718899330327,15.8697,133.72,133.59,6.2368]
[1718899330528,15.8697,133.72,133.6,20.0]
[1718899330730,0.17,133.71,133.61,7.484]
[1718899330935,6.0368,133.7,133.62,7.4838]
[1718899331345,6.0368,133.7,133.62,23.3536]
[1718899331545,6.0368,133.7,133.62,15.8697]
[1718899331843,6.0368,133.7,133.59,7.4854]
[1718899331844,0.17,133.69,133.59,7.4854]
[1718899332047,20.17,133.69,133.59,15.8697]
[1718899332241,65.17,133.69,133.59,15.8697]
[1718899332436,20.17,133.69,133.59,15.8697]
[1718899332742,6.0368,133.7,133.59,15.8697]
[1718899332951,20.17,133.69,133.59,7.4855]
[1718899333158,20.17,133.69,133.58,7.4859]
[1718899333370,20.17,133.69,133.59,7.4855]
[1718899334553,20.17,133.69,133.6,7.4849]
[1718899334955,6.0368,133.7,133.61,45.17]
[1718899335154,6.0368,133.7,133.61,45.0]
[1718899335365,6.0368,133.7,133.57,37.4319]
[1718899335366,0.17,133.69,133.6,7.4847]
[1718899335545,0.17,133.69,133.59,7.4853]
[1718899335737,6.1909,133.67,133.56,29.66829136]
[1718899336065,15.0847,133.68,133.5,37.4518]
[1718899336066,33.0,133.65,133.5,37.4518]
[1718899336245,15.0847,133.63,133.51,1.30440283]
[1718899336452,15.0847,133.63,133.52,7.4892]
[1718899336453,0.17,133.62,133.52,7.4892]
[1718899336768,15.0847,133.63,133.49,22.54]
[1718899337060,15.0847,133.63,133.49,29.668291]
[1718899337061,0.17,133.62,133.49,29.668291]
[1718899337262,6.1909,133.61,133.46,22.54]
[1718899337449,0.17,133.6,133.52,7.4892]
[1718899337651,0.17,133.6,133.5,7.4901]
[1718899337832,20.17,133.6,133.5,7.4902]
[1718899338038,20.17,133.6,133.47,15.0847]
[1718899338238,45.0,133.59,133.49,7.4911]
[1718899338476,20.17,133.6,133.51,7.4899]
[1718899338638,0.17,133.6,133.47,37.6247]
[1718899338838,0.17,133.6,133.48,7.4912]
[1718899338839,45.17,133.6,133.48,7.4912]
[1718899339159,45.17,133.6,133.47,15.0847]
[1718899339160,6.1824,133.57,133.47,15.0847]
[1718899339456,0.17,133.56,133.47,22.5769]
[1718899339635,6.1824,133.57,133.49,7.491]
[1718899339836,6.1824,133.57,133.49,7.4911]
[1718899340048,6.1824,133.57,133.47,56.3554]
[1718899340254,6.1824,133.57,133.47,37.6247]
[1718899340462,21.8748,133.62,133.54,7.4882]
[1718899340641,21.8748,133.62,133.51,7.4895]
[1718899340843,21.8748,133.62,133.48,26.82713342]
[1718899340844,21.8748,133.62,133.5,0.17]
[1718899341042,21.8748,133.62,133.52,7.489]
[1718899341242,21.8748,133.62,133.53,45.0]
[1718899341492,54.8748,133.62,133.5,0.17]
[1718899341640,54.8748,133.62,133.48,1.73303342]
[1718899341844,54.8748,133.62,133.49,7.4911]
[1718899341845,20.0,133.61,133.49,7.4911]
[1718899342036,20.0,133.61,133.44,1.30480817]
[1718899342260,33.0,133.58,133.47,22.5768]
[1718899342565,0.17,133.57,133.47,7.4919]
[1718899342940,0.17,133.57,133.46,7.4928]
[1718899343145,22.4112,133.56,133.44,8.79860817]
[1718899343347,22.4112,133.56,133.43,7.4943]
[1718899343348,33.0,133.54,133.43,7.4943]
[1718899343555,33.0,133.54,133.44,7.4939]
[1718899343741,0.17,133.53,133.44,7.4939]
[1718899343946,0.17,133.53,133.41,18.7381]
[1718899344160,0.17,133.53,133.44,7.4936]
[1718899344363,0.17,133.53,133.41,7.4951]
[1718899344562,65.17,133.53,133.41,7.4951]
[1718899344761,6.2242,133.52,133.41,7.4951]
[1718899344965,20.17,133.51,133.39,0.7413473]
[1718899345267,20.17,133.51,133.41,7.4952]
[1718899345469,20.17,133.51,133.39,8.2378473]
[1718899345470,45.0,133.5,133.39,8.2378473]
[1718899345641,0.17,133.49,133.39,8.2379473]
[1718899345959,6.2242,133.52,133.43,7.4945]
[1718899346141,20.0,133.51,133.42,7.4949]
[1718899346342,0.17,133.5,133.41,7.4953]
[1718899347555,0.17,133.5,133.42,7.495]